Cogmind - Beta 13 @@@ ROGUE MODE // 2024.05.15 @ 23:39:47 Player: gigi283 Result: Destroyed by G-47 Trooper with Particle Gun Performance ------------- Evolutions (3) 1500 Regions Visited (4) 800 Robots Destroyed (144) 720 Value Destroyed (4129) 4129 Prototype IDs (17) 340 Alien Tech Used (0) 0 Bonus (820) 820 TOTAL SCORE: 8309 Bonus ------- High Alert Combat Kills 747 Follower Combat Kills 90 Friendly Fire -17 Cogmind --------- Core Integrity 0/700 Matter 280/300 Energy 130/150 System Corruption 20% Temperature Cool (9) Movement Walking (260) Ox2 Location -7/Factory Parts ------- > --- POWER (1) -------- Micro Fission Core > --- PROPULSION (3) --- Aluminum Leg > --- UTILITY (6) ------ Improved Heat Sink Medium Storage Unit Machine Analyzer Improved Signal Interpreter Transport Network Coupler Target Analyzer > --- WEAPON (3) ------- Pulse Rifle Cooled Particle Cannon > --- INVENTORY (10) --- Nuclear Core Terrain Scan Processor Microactuators Advanced ECM Suite Relay Coupler [Duelist] (22) Relay Coupler [Sentry] (18) Component Analysis Suite High-powered Shotgun Peak State ------------ > --- POWER ------------ Improved Deuterium Engine > --- PROPULSION ------- Xenon Bombardment Thruster Xenon Bombardment Thruster Xenon Bombardment Thruster > --- UTILITY ---------- Medium Storage Unit Machine Analyzer Improved Signal Interpreter Transport Network Coupler Advanced Targeting Computer Transmission Jammer > --- WEAPON ----------- Gauss Cannon Gauss Cannon Remote Datajack > --- INVENTORY -------- Improved Deuterium Engine Improved VTOL Module Weapon Cycler Advanced ECM Suite Component Analysis Suite Improved Spread Laser Improved Spread Laser Improved Assault Rifle Mini Assault Cannon Missile Launcher [Rating: 47] Favorites ----------- Power Micro Nuclear Core Engine Improved Deuterium Engine Power Core Micro Nuclear Core Propulsion Improved VTOL Module Leg Aluminum Leg Wheel Armored Wheel Hover Unit Aerolev Unit Flight Unit Improved VTOL Module Utility Medium Storage Unit Device Transmission Jammer Storage Medium Storage Unit Processor Machine Analyzer Protection Improved Medium Armor Plating Weapon Gauss Cannon Energy Gun Particle Gun Energy Cannon EM Pulse Cannon Ballistic Gun Improved Assault Rifle Ballistic Cannon Gauss Cannon Launcher Rocket Launcher Special Weapon Remote Datajack Special Melee Weapon Improved Datajack Build | -11 -10 -9 -8 -7 ------- Run | Yrd Mat Mat Mat Fac Slots Evolved 6 | . . 2 2 2 Power . | . . . . . Propulsion 1 | . . . 1 . Utility 4 | . . 2 . 2 Weapon 1 | . . . 1 . Parts Attached 131 | 6 5 23 34 63 Power 16 | 1 . 3 5 7 Engine 8 | 1 . 1 3 3 Core 8 | . . 2 2 4 Reactor . | . . . . . Propulsion 37 | 2 2 8 10 15 Treads . | . . . . . Leg 1 | . . . . 1 Wheel 10 | 2 2 2 . 4 Hover 13 | . . 6 1 6 Flight 13 | . . . 9 4 Utility 26 | 1 2 5 6 12 Device 12 | . 1 3 3 5 Storage 5 | 1 1 . . 3 Processor 8 | . . 2 2 4 Hackware . | . . . . . Protection 1 | . . . 1 . Artifact . | . . . . . Weapon 52 | 2 1 7 13 29 Energy Gun 16 | . . 4 2 10 Energy Cannon 7 | . . . 5 2 Ballistic Gun 8 | 2 . . 2 4 Ballistic Cannon 7 | . . . 1 6 Launcher 8 | . 1 3 2 2 Special Weapon 4 | . . . . 4 Impact Weapon . | . . . . . Slashing Weapon . | . . . . . Piercing Weapon . | . . . . . Special Melee Weapon 2 | . . . 1 1 Unidentified Prototypes 8 | . . 1 4 3 Parts Lost 43 | . 3 5 15 20 Power 3 | . 1 . 1 1 Propulsion 17 | . . 3 4 10 Utility 3 | . . . 2 1 Weapon 20 | . 2 2 8 8 Highest Loss Streak 5 | . 1 5 3 4 To Critical Strikes . | . . . . . Average Slot Usage (%) 90 | . 91 88 91 90 Engine 4 | . 12 3 6 2 Core 4 | . . 6 2 4 Wheel 6 | . 28 13 . 2 Hover 5 | . . 6 6 6 Flight 7 | . . . 17 7 Device 9 | . 9 21 6 7 Storage 9 | . 14 11 6 8 Processor 19 | . . 6 19 27 Energy Gun 6 | . . 15 4 5 Energy Cannon 2 | . . . 7 1 Ballistic Gun 5 | . 22 1 1 5 Ballistic Cannon 3 | . . . 3 4 Launcher 2 | . 3 2 6 1 Special Weapon 1 | . . . . 2 Naked Turns . | . . . . . Heaviest Build 38 | 13 20 27 37 38 Greatest Support 44 | 20 24 24 24 44 Greatest Overweight (x) 9 | . 1 3 6 9 Average Overweight (x) . | . . . 1 1 Largest Inventory Capacity 10 | 8 10 10 10 10 Average Capacity 9 | 6 8 10 8 9 Most Carried 10 | 2 7 10 10 10 Average Carried 7 | . 5 8 6 8 Final Capacity 10 | 8 10 10 5 10 Final Carried 8 | . 5 7 4 8 Class Distribution -------------------- 25% | Mutant 16% | Scavenger-Mutant 15% | Scavenger-Gunner 11% | Gunner 11% | Bomber 11% | Scavenger-Skirmisher 4% | Skirmisher 3% | Sprinter Dominant Class ---------------- Mutant | -10/Materials Scavenger-Mutant | -9/Materials Bomber | -8/Materials Scavenger-Gunner | -7/Factory Resources | -11 -10 -9 -8 -7 ----------- Run | Yrd Mat Mat Mat Fac Matter Collected 3352 | 247 226 294 895 1690 Remotely . | . . . . . Salvage Created 4147 | . 336 775 1315 1721 Parts 259 | . 18 37 83 121 Haulers Intercepted 4 | . . . 2 2 Recyclers Shooed 6 | . 3 . 1 2 Parts Field Recycled . | . . . . . Retrieved Matter . | . . . . . Parts Self-Destructed . | . . . . . Prevented . | . . . . . Kills | -11 -10 -9 -8 -7 ------- Run | Yrd Mat Mat Mat Fac Combat Hostiles Destroyed 81 | . 8 17 28 28 Guns 37 | . 5 10 5 17 Cannons 8 | . . . 4 4 AOE 32 | . 3 4 18 7 Classes Destroyed 16 | . 3 4 8 1 Worker 17 | . . . 5 12 Builder 16 | . 1 2 4 9 Tunneler 3 | . . . 1 2 Hauler 4 | . . . 2 2 Recycler 7 | . . . 3 4 Mechanic 3 | . 1 . . 2 Operator 1 | . . . 1 . Watcher 12 | . . 3 4 5 Swarmer 16 | . . 1 8 7 Grunt 41 | . 8 10 13 10 Duelist 1 | . . 1 . . Sentry 11 | . . 5 3 3 Specialist 2 | . . . 2 . Hunter 4 | . . . 1 3 Programmer 5 | . . . . 5 Heavy 1 | . . . 1 . Best Kill Streak 16 | . 3 6 7 16 Combat Bots Only 6 | . 2 6 6 4 Max Kills in Single Turn 5 | . 2 3 3 5 Gunslinging . | . . . . . Exploded 3 | . 1 1 2 3 Melee . | . . . . . Uniques/NPCs Destroyed . | . . . . . Combat | -11 -10 -9 -8 -7 -------- Run | Yrd Mat Mat Mat Fac Hostile Shots Fired 661 | . 57 95 146 363 Missed 214 | . 14 29 36 135 Damage Taken 6812 | . 601 897 1788 3526 Core 1555 | . 114 308 423 710 Absorbed by Shields . | . . . . . Regen/Repaired (Parts) 266 | . . 206 60 . Core Remaining (%) 50 | 100 54 23 23 . Volleys Fired 378 | . 70 57 91 160 Largest 3 | . 2 2 3 3 Hottest 208 | . 50 112 171 208 Shots Fired 686 | . 104 101 179 302 Gun 455 | . 98 88 65 204 Cannon 154 | . . . 86 68 Launcher 60 | . 6 13 28 13 Special 17 | . . . . 17 Kinetic 324 | . 98 7 67 152 Thermal 244 | . . 81 65 98 Explosive 60 | . 6 13 28 13 Electromagnetic 41 | . . . 19 22 Robot Hit Streak 22 | . 9 22 14 13 Robot Miss Streak 9 | . 4 3 6 9 Penetration Max 1 | . . . . 1 Secondary Targets . | . . . . . Shots Hit Robots 434 | . 69 72 115 178 Core Hits 249 | . 25 31 95 98 Critical Kills 3 | . 1 . 1 1 Critical Parts Destroyed . | . . . . . Critical Strikes 13 | . 1 6 2 4 Burn 8 | . . 6 1 1 Meltdown 1 | . . . 1 . Destroy 2 | . 1 . . 1 Blast 1 | . . . . 1 Corrupt 1 | . . . . 1 Melee Attacks 4 | . . . 4 . Impact . | . . . . . Slashing . | . . . . . Piercing . | . . . . . Sneak Attacks . | . . . . . Combat Hostiles . | . . . . . Follow-up Attacks . | . . . . . Damage Inflicted 11806 | . 838 1574 3750 5644 Guns 4549 | . 634 1031 688 2196 Cannons 2536 | . . . 1372 1164 Explosions 4674 | . 204 541 1674 2255 Melee . | . . . . . Ramming 47 | . . 2 16 29 Kinetic 3324 | . 634 29 922 1739 Thermal 4380 | . . 1002 1123 2255 Explosive 3518 | . 204 541 1352 1421 Electromagnetic 537 | . . . 337 200 Impact . | . . . . . Slashing . | . . . . . Piercing . | . . . . . Highest Corruption 20 | . . . 1 20 Average Corruption 7 | . . . 1 8 Corruption Purged . | . . . . . Corruption Blocked . | . . . . . Effects 97 | . . . 5 92 Message Errors 29 | . . . 2 27 Matter Fused 26 | . . . 2 24 Heat Flow Errors 6 | . . . 1 5 Energy Discharges 16 | . . . . 16 Parts Rejected 1 | . . . . 1 Parts Fused 1 | . . . . 1 Data Loss (minor) 8 | . . . . 8 Data Loss (major) 5 | . . . . 5 Alerts 1 | . . . . 1 Misdirections 1 | . . . . 1 Weapon Failures 3 | . . . . 3 Overload Shots . | . . . . . Overflow Damage 531 | . . 2 60 469 Projectiles 56 | . . . 30 26 Explosions 475 | . . 2 30 443 Melee . | . . . . . Knockbacks 15 | . . . 10 5 Impact . | . . . . . Kinetic 15 | . . . 10 5 Secondary . | . . . . . Self-Inflicted Damage 449 | . 59 73 204 113 Shots 16 | . 2 4 7 3 Rammed 9 | . . 1 4 4 Targets Rammed 9 | . . 1 4 4 Kicked . | . . . . . Crushed . | . . . . . Highest Temperature 515 | . 19 176 429 515 Average Temperature 103 | . 8 56 142 93 Received Heat Transfer 1827 | . 318 321 432 756 Effects 15 | . . . 7 8 Shutdowns 3 | . . . 1 2 Energy Bleed 3 | . . . 1 2 Interference 5 | . . . 2 3 Matter Decay 2 | . . . 1 1 Damage (minor) 2 | . . . 2 . Siege Activations . | . . . . . Robots Corrupted . | . . . . . Combat Hostiles . | . . . . . Parts Fried 1 | . . . 1 . Impact Corruptions . | . . . . . Robots Melted 4 | . . 3 1 . Combat Hostiles 4 | . . 3 1 . Parts Melted 20 | . . 13 1 6 Heat Transferred 7637 | . . 2812 1954 2871 Parts Sabotaged . | . . . . . Parts Stolen . | . . . . . Parts Stripped . | . . . . . Power Chain Reactions 4 | . . . 4 . Alert | -11 -10 -9 -8 -7 ------- Run | Yrd Mat Mat Mat Fac Peak Influence 1012 | . 247 357 914 1012 Initial 403 | . . 41 150 403 Average 411 | . 89 171 664 445 Maximum Alert Level 3 | . 1 1 3 3 Low Security (%) 34 | 100 86 58 8 28 Level 1 18 | . 13 41 5 16 Level 2 23 | . . . 33 31 Level 3 23 | . . . 52 23 Level 4 . | . . . . . Level 5 . | . . . . . High Security . | . . . . . Max Security . | . . . . . Squads Dispatched 25 | . 1 3 5 16 Investigation 6 | . . 2 2 2 Extermination 5 | . . . . 5 Reinforcement 8 | . 1 1 3 3 Assault 1 | . . . . 1 Garrison 5 | . . . . 5 Intercept . | . . . . . Searches Triggered . | . . . . . Construction Impeded 1 | . . . 1 . Haulers Reinforced 1 | . . . . 1 Active Scanning Responses . | . . . . . Cargo Convoy Interrupts . | . . . . . Stealth | -11 -10 -9 -8 -7 --------- Run | Yrd Mat Mat Mat Fac Distress Signals 4 | . . . 2 2 Communications Jammed 82 | . . . . 82 Distress Signals 80 | . . . . 80 Times Spotted 127 | . 15 25 34 53 Peak Tracking Total 7 | . 3 7 6 5 Tactical Retreats 6 | . 1 . 2 3 Traps | -11 -10 -9 -8 -7 ------- Run | Yrd Mat Mat Mat Fac Traps Triggered 13 | . . 2 1 10 Indirectly . | . . . . . Trap Hack Attempts . | . . . . . Triggered . | . . . . . Disarmed . | . . . . . Reprogrammed . | . . . . . Reused . | . . . . . Traps Extracted . | . . . . . Installed . | . . . . . Triggered . | . . . . . Machines | -11 -10 -9 -8 -7 ---------- Run | Yrd Mat Mat Mat Fac Machines Disabled 31 | . . 1 7 23 Max in Single Turn 9 | . . 1 1 9 Garrison Access 1 | . . . . 1 Machines Repaired . | . . . . . Machines Dismantled . | . . . . . Machines Sabotaged . | . . . . . Overloaded Fab Kills . | . . . . . Hacking | -11 -10 -9 -8 -7 --------- Run | Yrd Mat Mat Mat Fac Machines Accessed 22 | . . 5 8 9 Terminals 17 | . . 3 7 7 Fabricators . | . . . . . Repair Stations 3 | . . 2 1 . Recycling Units . | . . . . . Scanalyzers 2 | . . . . 2 Garrison Access . | . . . . . Total Hacks 64 | . . 19 29 16 Successful 39 | . . 14 18 7 Failed 25 | . . 5 11 9 Catastrophic 5 | . . 1 2 2 Database Lockouts . | . . . . . Manual 31 | . . 5 15 11 Terminals 44 | . . 8 25 11 Fabricators . | . . . . . Repair Stations 15 | . . 11 4 . Recycling Units . | . . . . . Scanalyzers 5 | . . . . 5 Garrison Access . | . . . . . Terminal Hacks 11 | . . 2 7 2 Record 1 | . . 1 . . Robot Analysis 1 | . . . 1 . Prototype ID Bank 4 | . . 1 3 . Open DSF 1 | . . . . 1 Scanalyzer Index 1 | . . . 1 . Alert Level 1 | . . . 1 . Unreport Threat 1 | . . . . 1 Recall Investigation 1 | . . . 1 . Fabricator Hacks . | . . . . . Repair Station Hacks 14 | . . 10 4 . Scan Component 7 | . . 5 2 . Repair 7 | . . 5 2 . Recycling Unit Hacks . | . . . . . Scanalyzer 2 | . . . . 2 Insert Component 1 | . . . . 1 Analyze 1 | . . . . 1 Garrison Access Hacks . | . . . . . Unauthorized Hacks 12 | . . 2 7 3 Terminals 12 | . . 2 7 3 Botnet 12 | . . 2 7 3 Fabricators . | . . . . . Repair Stations . | . . . . . Recycling Units . | . . . . . Scanalyzers . | . . . . . Garrison Access . | . . . . . Data Cores Recovered . | . . . . . Used . | . . . . . Hacking Detections 19 | . . 5 6 8 Full Trace Events 9 | . . 2 5 2 Feedback Events . | . . . . . Feedback Blocked . | . . . . . Robot Schematics Acquired . | . . . . . Robots Built . | . . . . . Authchips . | . . . . . Time . | . . . . . Total Robot Build Rating . | . . . . . Part Schematics Acquired 1 | . . . . 1 Parts Built . | . . . . . Authchips . | . . . . . Time . | . . . . . Total Part Build Rating . | . . . . . Parts Repaired 6 | . . 5 1 . Time 249 | . . 185 64 . Parts Recycled . | . . . . . Recycled Matter . | . . . . . Retrieved Matter . | . . . . . Retrieved Components . | . . . . . Parts Scanalyzed 1 | . . . . 1 Part Schematics Acquired 1 | . . . . 1 Parts Damaged . | . . . . . Bothacking | -11 -10 -9 -8 -7 ------------ Run | Yrd Mat Mat Mat Fac Used RIF Installer . | . . . . . Robots Hacked 6 | . . . 1 5 Non-combat 2 | . . . . 2 Combat 4 | . . . 1 3 Robot Hacks Applied 8 | . . . 1 7 parse_system 6 | . . . 1 5 no_distress 1 | . . . . 1 find_chute 1 | . . . . 1 Relay Couplers Released 4 | . . . . 4 Machine Destruction 1 | . . . . 1 Programmers 3 | . . . . 3 Fabnet Peak Effective % . | . . . . . Robots Rewired . | . . . . . Allies Hacked . | . . . . . Hacks Repelled . | . . . . . Allies | -11 -10 -9 -8 -7 -------- Run | Yrd Mat Mat Mat Fac Total Allies 3 | . . . . 3 Largest Group 2 | . . . . 2 Highest-Rated Group 56 | . . . . 56 Highest-Rated Ally 28 | . . . . 28 Total Orders . | . . . . . Ally Attacks 21 | . . . . 21 Total Damage 293 | . . . . 293 Kills 2 | . . . . 2 Allies Corrupted . | . . . . . Allies Melted . | . . . . . Intel | -11 -10 -9 -8 -7 ------- Run | Yrd Mat Mat Mat Fac Robot Analysis Total 1 | . . . 1 . Derelict Logs Recovered . | . . . . . Drone Launches . | . . . . . Drone Recoveries . | . . . . . Exploration | -11 -10 -9 -8 -7 ------------- Run | Yrd Mat Mat Mat Fac Turns Passed 6192 | 43 521 1014 1262 3352 Spaces Moved 3675 | 43 358 578 682 2014 Core 66 | 4 . . . 62 Treads . | . . . . . Legs 2 | . . . . 2 Wheels 1382 | 39 358 414 . 571 Hover 1120 | . . 164 196 760 Flight 1105 | . . . 486 619 Fastest Speed 29 | 50 80 90 29 29 Average Speed 120 | 77 89 104 124 129 Slowest Speed 520 | 80 105 240 520 520 Overloaded Moves . | . . . . . Propulsion Burnouts . | . . . . . Robots Hopped . | . . . . . Cave-ins Triggered . | . . . . . Exploration Rate (%) 39 | 3 58 41 53 44 Regions Visited 4 Branch Regions . Pre-discovered Areas . | . . . . . Known Exits Taken 1 | . . . 1 . Unknown Exits Taken 3 | 1 1 1 . . Scrap Searched . | . . . . . Spaces Dug 3 | . . . . 3 Terrain Destroyed 555 | . 49 75 283 148 Melee . | . . . . . Projectile 23 | . . . 10 13 AOE 532 | . 49 75 273 135 Terrain Rammed . | . . . . . Walls Destroyed . | . . . . . Machines Disabled . | . . . . . Actions | -11 -10 -9 -8 -7 --------- Run | Yrd Mat Mat Mat Fac Total 4847 | 51 468 885 940 2503 Wait 463 | . 21 199 75 168 Move 3671 | 42 357 577 681 2014 Hop . | . . . . . Pick Up 101 | 3 10 18 32 38 Fast Attach 51 | 3 2 8 8 30 Attach 59 | 3 2 11 22 21 Detach 5 | . . . 2 3 Swap 21 | . 1 4 4 12 Drop 72 | . 5 10 17 40 Fire 378 | . 70 57 91 160 Melee 4 | . . . 4 . Ram 9 | . . 1 4 4 Kick . | . . . . . Crush . | . . . . . Escape Stasis 13 | . . . . 13 Rewire . | . . . . . Trap . | . . . . . Miscellaneous . | . . . . . Route ------- -11/Scrapyard -10/Materials (discovered 4 exits: *Mat x2 / [*Min x2]) -9/Materials (discovered 2 exits: *Mat / [*Min]) -8/Materials (discovered 3 exits: *Fac x2 / [*Sto]) -7/Factory (discovered 4 exits: [*Fac x3] / [*Low]) History --------- Turn | Location | Event 8 | -11/Scrapyard | Discovered new exit (range 15) 44 | -11/Scrapyard | Entered Materials 117 | -10/Materials | Discovered new exit (range 7) 167 | -10/Materials | Discovered new exit (range 14) 304 | -10/Materials | Build established: Mutant 340 | -10/Materials | Discovered new exit (range 14) 548 | -10/Materials | Discovered new exit (range 4) 565 | -10/Materials | Entered another Materials area 565 | -9/Materials | Evolved 2 slots: Utility x2 708 | -9/Materials | Repaired Arm. Wheel 748 | -9/Materials | Repaired Lgt. Nuclear Core 890 | -9/Materials | Discovered new exit (range 7) 985 | -9/Materials | Repaired Beam Rifle 1038 | -9/Materials | Repaired Imp. Medium Laser 1282 | -9/Materials | Build established: Scavenger-Mutant 1339 | -9/Materials | Discovered new exit (range 3) 1353 | -9/Materials | Core integrity fell below 50% 1412 | -9/Materials | Lost 5 parts (3n2w) 1504 | -9/Materials | Repaired Rocket Launcher 1579 | -9/Materials | Entered another Materials area 1579 | -8/Materials | Evolved 2 slots: Propulsion x1, Weapon x1 1849 | -8/Materials | Lost 3 parts (1n1u1w) 1865 | -8/Materials | Discovered new exit (range 14) 2023 | -8/Materials | Discovered new exit (range 16) 2099 | -8/Materials | Lost 3 parts (1u2w) 2219 | -8/Materials | Core integrity fell below 50% 2246 | -8/Materials | Lost 3 parts (1p1n1w) 2504 | -8/Materials | Repaired Missile Launcher 2698 | -8/Materials | Discovered new exit (range 9) 2764 | -8/Materials | Identified exit to Factory 2841 | -8/Materials | Entered Factory 2841 | -7/Factory | Evolved 2 slots: Utility x2 2851 | -7/Factory | Discovered new exit (range 11) 2876 | -7/Factory | Garrison activated, responded to threat 3289 | -7/Factory | Build established: Bomber 3586 | -7/Factory | Discovered new exit (range 16) 3632 | -7/Factory | Build established: Scavenger-Gunner 3975 | -7/Factory | Build established: Gunner 4474 | -7/Factory | Discovered new exit (range 16) 4515 | -7/Factory | Allied Derelicts emerged from ambush trap array 4596 | -7/Factory | Build established: Mutant 5045 | -7/Factory | System corruption reached 10% 5063 | -7/Factory | Discovered new exit (range 15) 5296 | -7/Factory | Build established: Scavenger-Skirmisher 5423 | -7/Factory | Lost 4 parts (3n1w) 5504 | -7/Factory | Core integrity fell below 50% 5552 | -7/Factory | Lost 4 parts (1p1u2w) 5950 | -7/Factory | Garrison activated, responded to threat 6107 | -7/Factory | Garrison activated, responded to threat 6159 | -7/Factory | Core integrity fell below 20% 6167 | -7/Factory | Lost 4 parts (2n2w) 6193 | -7/Factory | Destroyed by G-47 Trooper with Particle Gun Last Messages --------------- 06139_ Overheating: Matter decay (-33). 06141_ K-01 Serf collects debris. 06141_ Critical hit (Burn: +37). 06143_ System corrupted: Energy discharge (-10). 06157_ G-47 Trooper destroyed. 06158_ Acquired 56 matter. 06160_ S/K/UGZHPFWHNGQKY=RZIZOABVYA 9O3IB 06160_ Critical hit (Burn: +37). 06165_ K-01 Serf collects debris. 06169_ Hvy. Ion Cannon destroyed. 06169_ K-01 Serf collects debris. 06172_ Acquired Aluminum Leg. 06173_ K-01 Serf collects debris. 06175_ Identified Cld. Particle Cannon. 06177_ K-01 Serf collects debris. 06185_ System corrupted: Energy discharge (-52). 06185_ G-47 Trooper destroyed. 06185_ K-01 Serf collects debris. 06185_ Critical hit (Burn: +37). 06188_ K-01 Serf collects debris. Map ----- +----------------------------------------------------+ | | | ??????????????????????????????###############????? | | ??????????????????????????????# #????? | | ?????????"""??????????????????# #????? | | ?????????"""??????????????????# #????? | | ### ?????"""??????????????????# #????? | |